bitfinex/quotes_SOLUSD_20230103
["timestamp","ask_amount","ask_price","bid_price","bid_amount"]
[1672725718314,46.7053,11.786,11.774,30.0]
[1672725718524,30.0,11.786,11.774,30.0]
[1672725720838,30.0,11.783,11.773,197.1689]
[1672725721055,312.0,11.784,11.774,30.0]
[1672725721263,312.0,11.784,11.775,63.78]
[1672725721476,312.0,11.784,11.776,30.0]
[1672725722217,63.69,11.792,11.776,30.0]
[1672725722406,174.2791,11.798,11.78,5.87]
[1672725722618,30.0,11.797,11.782,30.0]
[1672725722831,30.0,11.795,11.783,20.0]
[1672725724222,30.0,11.795,11.784,30.0]
[1672725724421,30.0,11.797,11.784,30.0]
[1672725725041,30.0,11.797,11.785,63.72]
[1672725725241,342.0,11.797,11.785,63.72]
[1672725725457,342.0,11.797,11.784,93.73]
[1672725729453,312.0,11.797,11.784,93.73]
[1672725729662,63.63,11.803,11.79,5.86]
[1672725729867,93.6,11.807,11.79,5.86]
[1672725730194,63.6,11.807,11.791,196.0179]
[1672725730610,115.0383,11.808,11.792,112.3279]
[1672725730818,115.0383,11.808,11.794,30.0]
[1672725731028,63.59,11.809,11.794,30.0]
[1672725731234,63.59,11.809,11.795,63.67]
[1672725731448,174.6998,11.812,11.795,63.67]
[1672725731659,174.6998,11.812,11.796,30.0]
[1672725732741,30.0,11.811,11.795,63.67]
[1672725732930,63.59,11.81,11.794,93.67]
[1672725733366,63.59,11.81,11.795,30.0]
[1672725734414,63.59,11.81,11.796,63.66]
[1672725734615,93.58,11.811,11.797,30.0]
[1672725735054,30.0,11.81,11.797,30.0]
[1672725735250,63.58,11.811,11.797,30.0]
[1672725735455,63.58,11.811,11.8,5.86]
[1672725735783,312.0,11.812,11.802,30.0]
[1672725735998,312.0,11.812,11.801,83.64]
[1672725736632,312.0,11.812,11.802,30.0]
[1672725737682,30.0,11.811,11.801,20.0]
[1672725738396,30.0,11.811,11.8,123.0535]
[1672725738397,63.59,11.81,11.8,117.1935]
[1672725738608,93.58,11.811,11.8,117.1935]
[1672725739146,93.58,11.811,11.795,63.67]
[1672725739346,93.58,11.811,11.796,30.0]
[1672725739675,5.88,11.81,11.796,30.0]
[1672725739877,5.88,11.81,11.794,93.67]
[1672725740094,63.59,11.809,11.794,93.67]
[1672725740297,63.59,11.809,11.794,63.67]
[1672725740633,30.0,11.808,11.793,117.1935]
[1672725740829,63.6,11.807,11.793,117.1935]
[1672725741020,30.0,11.806,11.794,30.0]
[1672725741230,30.0,11.806,11.793,117.1935]
[1672725742195,30.0,11.806,11.794,30.0]
[1672725742410,30.0,11.806,11.793,117.1935]
[1672725742828,342.0,11.806,11.793,117.1935]
[1672725743236,5.89,11.8,11.785,63.72]
[1672725743441,63.65,11.799,11.784,63.73]
[1672725743650,30.0,11.798,11.785,30.0]
[1672725743863,18.68723102,11.8,11.783,262.94413304]
[1672725743864,63.66,11.797,11.783,262.94413304]
[1672725744075,63.65,11.799,11.783,119.6051]
[1672725744519,91.04117122,11.798,11.784,93.73]
[1672725744732,30.0,11.796,11.784,93.73]
[1672725745235,30.0,11.796,11.784,63.73]
[1672725745660,30.0,11.796,11.785,30.0]
[1672725746087,30.0,11.796,11.784,30.0]
[1672725746830,30.0,11.796,11.785,63.72]
[1672725747027,30.0,11.796,11.786,30.0]
[1672725747350,30.0,11.796,11.784,93.73]
[1672725747874,93.65,11.798,11.784,93.73]
[1672725748490,93.65,11.798,11.784,63.73]
[1672725748700,93.65,11.798,11.784,30.0]
[1672725748925,63.65,11.798,11.784,30.0]
[1672725749134,210.5534,11.799,11.784,93.73]
[1672725749464,116.9034,11.799,11.784,93.73]
[1672725750089,30.0,11.798,11.784,93.73]
[1672725750493,116.9034,11.799,11.784,93.73]
[1672725750700,312.0,11.796,11.784,93.73]
[1672725753454,29.39831014,11.795,11.784,63.73]
[1672725753869,312.0,11.796,11.785,30.0]
[1672725754077,312.0,11.796,11.786,63.72]
[1672725754384,30.0,11.795,11.786,63.72]
[1672725754795,30.0,11.795,11.784,93.73]
[1672725755233,30.0,11.795,11.784,63.73]
[1672725756183,30.0,11.795,11.785,30.0]
[1672725756377,312.0,11.796,11.785,30.0]
[1672725756909,116.9034,11.799,11.784,63.73]
[1672725757127,30.0,11.798,11.783,119.6051]
[1672725757451,63.66,11.797,11.784,30.0]
[1672725757641,30.0,11.798,11.785,63.72]
[1672725758194,180.5534,11.799,11.786,30.0]
[1672725758382,116.9034,11.799,11.788,30.0]
[1672725758594,93.63,11.802,11.788,30.0]
[1672725760081,312.0,11.795,11.786,30.0]
[1672725760703,312.0,11.795,11.787,63.71]
[1672725760918,109.2051,11.805,11.788,20.0]
[1672725761114,109.2051,11.805,11.79,35.85]
[1672725761326,109.2051,11.805,11.792,30.0]
[1672725761541,30.0,11.808,11.793,63.68]
[1672725761750,30.0,11.808,11.794,30.0]
[1672725761951,29.57026,11.808,11.794,30.0]
[1672725763125,63.59,11.809,11.794,30.0]
[1672725763437,63.57,11.813,11.796,30.0]
[1672725763644,93.57,11.814,11.798,30.0]
[1672725763839,93.57,11.814,11.799,193.1116]
[1672725764049,312.0,11.809,11.8,30.0]
[1672725764259,312.0,11.809,11.8,139.4616]
[1672725764480,312.0,11.809,11.801,20.0]
[1672725765109,312.0,11.809,11.801,83.64]
[1672725765521,312.0,11.809,11.801,20.0]
[1672725765961,312.0,11.809,11.801,83.64]
[1672725766174,312.0,11.809,11.802,30.0]
[1672725767012,312.0,11.809,11.801,20.0]
[1672725768987,119.0099,11.815,11.802,93.63]
[1672725769209,0.45207576,11.817,11.802,93.63]
[1672725769426,0.45207576,11.817,11.802,208.7937]
[1672725770057,0.45207576,11.817,11.803,135.1637]
[1672725770254,0.45207576,11.817,11.804,208.7837]
[1672725770714,0.45207576,11.817,11.81,5.86]
[1672725771010,0.45207576,11.817,11.812,30.0]
[1672725771212,0.45207576,11.817,11.814,30.0]
[1672725771620,0.00207576,11.817,11.814,30.0]
[1672725771835,0.00207576,11.817,11.815,63.56]
[1672725772256,0.00207576,11.817,11.816,42.79723102]
[1672725772474,312.0,11.829,11.817,30.0]
[1672725772689,380.73105955,11.849,11.825,49.97078887]
[1672725772877,179.3653117,11.85,11.827,36.60229673]
[1672725772878,564.83773216,11.85,11.827,36.60229673]
[1672725773093,111.4400562,11.846,11.828,83.49]
[1672725773303,30.0,11.845,11.832,79.71367903]
[1672725773634,111.4400562,11.846,11.84,5.83]
[1672725773949,30.0,11.845,11.834,63.46]
[1672725774157,30.0,11.845,11.831,63.48]
[1672725774487,111.4400562,11.846,11.831,63.48]
[1672725774488,111.4400562,11.846,11.832,20.0]
[1672725774665,111.4400562,11.846,11.833,63.47]
[1672725774875,30.0,11.845,11.834,30.0]
[1672725775091,111.4400562,11.846,11.84,5.83]
[1672725775312,111.4400562,11.846,11.841,20.0]
[1672725775622,111.4400562,11.846,11.841,83.42]
[1672725775944,111.4400562,11.846,11.841,20.0]
[1672725776262,111.4400562,11.846,11.842,46.84151667]
[1672725776473,111.4400562,11.846,11.838,30.0]
[1672725776474,111.4400562,11.846,11.837,68.18744249]
[1672725776665,30.0,11.845,11.832,30.0]
[1672725776879,111.4400562,11.846,11.832,30.0]
[1672725777082,111.4400562,11.846,11.834,30.0]
[1672725777287,111.4400562,11.846,11.84,5.82]
[1672725777497,30.0,11.845,11.835,63.45]
[1672725777727,30.0,11.845,11.832,111.1618]
[1672725777928,30.0,11.843,11.832,111.1618]
[1672725778149,30.0,11.843,11.83,35.81]
[1672725778349,30.0,11.843,11.831,63.48]
[1672725778559,30.0,11.843,11.83,5.82]
[1672725778769,63.42,11.842,11.83,5.82]
[1672725778982,30.0,11.841,11.828,30.0]
[1672725779186,30.0,11.841,11.824,63.51]
[1672725779508,63.43,11.84,11.822,63.52]
[1672725779719,375.43,11.84,11.822,63.52]
[1672725780043,312.0,11.84,11.83,29.13]
[1672725780242,312.0,11.84,11.831,63.48]
[1672725780454,312.0,11.84,11.829,63.49]
[1672725780665,63.41,11.844,11.828,63.49]
[1672725780983,30.0,11.843,11.829,30.0]
[1672725781185,30.0,11.841,11.828,30.0]
[1672725781406,63.42,11.842,11.829,20.0]
[1672725781720,63.41,11.844,11.83,5.47]
[1672725781939,111.4400562,11.846,11.831,63.48]
[1672725782135,111.4400562,11.846,11.833,30.0]
[1672725782466,111.4400562,11.846,11.834,63.46]
[1672725782966,111.4400562,11.846,11.84,5.47]
[1672725783181,111.4400562,11.846,11.842,30.0]
[1672725783392,111.4400562,11.846,11.835,63.45]
[1672725783716,111.4400562,11.846,11.831,63.48]
[1672725783932,111.4400562,11.846,11.83,5.45]
[1672725784122,30.0,11.844,11.832,30.0]
[1672725784331,342.0,11.844,11.831,63.48]
[1672725784964,30.0,11.842,11.83,5.45]
[1672725785189,63.42,11.841,11.828,30.0]
[1672725785388,111.4400562,11.846,11.83,27.39]
[1672725785720,30.0,11.845,11.83,27.88627371]
[1672725785936,30.0,11.845,11.83,35.98627371]
[1672725785937,30.0,11.843,11.83,35.98627371]
[1672725786664,30.0,11.843,11.83,5.98627371]
[1672725786858,76.21723102,11.842,11.83,0.49627371]
[1672725787073,30.0,11.841,11.83,0.49627371]
[1672725787284,63.43,11.84,11.83,0.49627371]
[1672725788134,30.0,11.839,11.83,0.49627371]
[1672725788329,63.44,11.838,11.83,0.49627371]
[1672725789081,30.0,11.837,11.83,0.49627371]
[1672725789291,63.45,11.836,11.83,0.49627371]
[1672725789479,30.0,11.835,11.83,0.49627371]
[1672725789694,63.46,11.834,11.83,0.49627371]
[1672725790027,30.0,11.833,11.83,0.00627371]
[1672725790341,30.0,11.831,11.826,0.0155437]
[1672725790658,63.48,11.83,11.826,0.0155437]
[1672725790866,30.0,11.829,11.826,0.0155437]
[1672725791197,30.0,11.827,11.826,0.0155437]
[1672725791382,30.0,11.826,11.806,161.32885236]
[1672725791594,63.51,11.825,11.806,97.71885236]
[1672725791805,76.30723102,11.825,11.806,97.71885236]
[1672725792132,42.79723102,11.824,11.807,30.0]
[1672725792334,63.52,11.823,11.806,97.71885236]
[1672725792528,76.31723102,11.823,11.806,97.71885236]
[1672725792746,5.47,11.82,11.806,97.71885236]
[1672725792956,30.0,11.818,11.806,97.71885236]
[1672725793177,63.55,11.817,11.806,97.71885236]
[1672725793625,30.0,11.816,11.806,97.71885236]
[1672725793801,63.56,11.815,11.806,97.71885236]
[1672725794006,5.47,11.82,11.806,97.71885236]
[1672725794007,69.0469794,11.824,11.82,46.59037487]
[1672725796122,30.0,11.823,11.82,46.59037487]
[1672725796334,342.0,11.823,11.82,46.59037487]
[1672725797379,312.0,11.823,11.82,46.59037487]
[1672725797585,69.0469794,11.824,11.821,20.0]
[1672725797795,44.0469794,11.824,11.821,83.53]
[1672725798123,206.7153117,11.85,11.822,30.0]
[1672725798124,93.4,11.845,11.822,30.0]
[1672725798334,93.4,11.845,11.823,63.52]
[1672725798528,106.19723102,11.845,11.823,63.52]
[1672725798739,93.4,11.845,11.823,63.52]
[1672725798948,93.4,11.845,11.824,30.0]
[1672725799161,5.47,11.84,11.823,63.52]
[1672725799370,30.0,11.838,11.823,63.52]
[1672725799591,63.44,11.837,11.82,46.59037487]
[1672725800007,30.0,11.836,11.82,46.59037487]
[1672725800220,63.45,11.835,11.82,46.59037487]
[1672725800642,312.0,11.833,11.82,46.59037487]
[1672725800856,30.0,11.831,11.82,46.59037487]
[1672725801053,63.48,11.83,11.82,46.59037487]
[1672725801261,63.47,11.832,11.82,46.59037487]
[1672725801467,312.0,11.833,11.821,20.0]
[1672725801697,312.0,11.833,11.822,93.52]
[1672725802311,63.43,11.839,11.822,93.52]
[1672725802526,30.0,11.843,11.822,93.52]
[1672725802726,63.42,11.842,11.822,93.52]
[1672725802953,63.38,11.848,11.83,5.44]
[1672725803176,179.3653117,11.85,11.83,5.44]
[1672725803177,179.3653117,11.85,11.831,83.48]
[1672725803372,179.3653117,11.85,11.831,96.27723102]
[1672725803580,179.3653117,11.85,11.832,12.79723102]
[1672725803803,30.0,11.845,11.833,30.0]
[1672725804122,30.0,11.845,11.831,83.48]
[1672725804429,30.0,11.845,11.822,30.0]
[1672725804653,63.41,11.844,11.822,30.0]
[1672725804961,30.0,11.843,11.823,12.79723102]
[1672725805175,179.3653117,11.85,11.823,76.31723102]
[1672725805388,354.3930768,11.846,11.83,5.47]
[1672725805578,354.3930768,11.846,11.831,63.48]
[1672725805785,367.19030782,11.846,11.826,30.0]
[1672725806000,93.4,11.845,11.826,30.0]
[1672725806432,63.4,11.845,11.827,12.79723102]
[1672725806643,42.3930768,11.846,11.83,5.43]
[1672725806963,42.3930768,11.846,11.831,63.48]
[1672725807167,42.3930768,11.846,11.832,30.0]
[1672725807384,42.3930768,11.846,11.833,63.47]
[1672725807582,42.3930768,11.846,11.834,20.0]
[1672725807800,42.3930768,11.846,11.836,30.0]
[1672725807993,42.3930768,11.846,11.837,83.44]
[1672725808633,42.3930768,11.846,11.838,30.0]
[1672725808848,42.3930768,11.846,11.84,30.0]
[1672725809057,42.3930768,11.846,11.841,20.0]
[1672725809274,42.3930768,11.846,11.838,63.44]
[1672725809470,42.3930768,11.846,11.839,20.0]
[1672725809681,42.3930768,11.846,11.841,30.0]
[1672725809908,42.3930768,11.846,11.842,20.0]
[1672725810100,42.3930768,11.846,11.842,83.42]
[1672725810763,42.3930768,11.846,11.843,30.0]
[1672725811364,0.0030768,11.846,11.844,63.41]
[1672725811574,0.0030768,11.846,11.845,20.0]
[1672725811905,0.0030768,11.846,11.845,83.4]
[1672725812306,0.0030768,11.846,11.845,96.19723102]
[1672725812626,0.0030768,11.846,11.845,83.4]
[1672725813051,0.0030768,11.846,11.845,96.19723102]
[1672725813256,44.84132792,11.85,11.845,96.19723102]
[1672725813467,378.09984577,11.864,11.852,30.0]
[1672725813678,379.02823135,11.863,11.853,63.36]
[1672725813886,16.339989,11.86,11.853,63.36]
[1672725814304,183.0482,11.871,11.853,63.36]
[1672725814305,377.57769768,11.871,11.853,63.36]
[1672725814512,377.57769768,11.871,11.86,21.809989]
[1672725814742,377.57769768,11.871,11.861,30.0]
[1672725814938,377.57769768,11.871,11.862,63.31]
[1672725815142,377.57769768,11.871,11.863,20.0]
[1672725815357,56.33542437,11.872,11.865,30.0]
[1672725815572,56.33542437,11.872,11.866,83.29]
[1672725815815,56.33542437,11.872,11.867,30.0]
[1672725816019,56.33542437,11.872,11.866,93.64823786]
[1672725816235,56.33542437,11.872,11.86,5.43]
[1672725816450,56.33542437,11.872,11.866,52.20823233]
[1672725816868,56.33542437,11.872,11.868,30.0]
[1672725817283,56.33542437,11.872,11.869,107.74991732]
[1672725817503,56.33542437,11.872,11.863,37.4409632]
[1672725817697,56.33542437,11.872,11.862,30.0]
[1672725817905,56.33542437,11.872,11.861,63.32]
[1672725818115,56.33542437,11.872,11.862,20.0]
[1672725818344,63.26,11.871,11.852,30.0]
[1672725818530,5.44,11.87,11.848,110.7183]
[1672725818745,30.0,11.868,11.852,30.0]
[1672725818955,63.28,11.867,11.852,30.0]
[1672725819383,63.28,11.867,11.849,63.38]
[1672725819597,30.0,11.866,11.852,30.0]
[1672725819910,63.29,11.865,11.849,63.38]
[1672725820117,63.29,11.865,11.848,110.7183]
[1672725820545,30.0,11.864,11.848,110.7183]
[1672725820760,63.3,11.863,11.849,63.38]
[1672725820955,63.29,11.865,11.849,63.38]
[1672725821374,63.29,11.865,11.852,30.0]
[1672725821793,30.0,11.866,11.852,30.0]
[1672725822000,63.29,11.865,11.85,30.0]
[1672725822650,30.0,11.864,11.85,30.0]
[1672725822943,30.0,11.862,11.849,63.38]
[1672725823177,30.0,11.862,11.852,20.0]
[1672725823685,30.0,11.864,11.852,20.0]
[1672725824746,63.29,11.865,11.852,20.0]
[1672725824960,30.0,11.864,11.852,20.0]
[1672725825171,63.3,11.863,11.852,20.0]
[1672725825584,30.0,11.862,11.847,63.39]
[1672725825799,63.32,11.861,11.846,0.06]
[1672725826013,30.0,11.86,11.846,0.06]
[1672725826210,63.33,11.859,11.846,0.06]
[1672725826633,30.0,11.858,11.846,0.06]
[1672725826959,30.0,11.856,11.846,0.06]
[1672725827164,63.35,11.855,11.846,0.06]
[1672725827371,30.0,11.854,11.846,0.06]
[1672725827588,63.36,11.853,11.846,0.06]
[1672725828008,30.0,11.852,11.846,0.06]
[1672725828210,63.37,11.851,11.846,0.06]
[1672725828631,30.0,11.85,11.846,0.06]
[1672725828855,63.38,11.849,11.846,0.06]
[1672725829163,30.0,11.848,11.846,0.06]
[1672725829482,30.0,11.846,11.833,935.20546947]
[1672725829701,63.4,11.845,11.83,111.5045]
[1672725830010,30.0,11.844,11.83,111.5045]
[1672725830209,63.41,11.843,11.825,30.0]
[1672725830420,63.41,11.843,11.826,63.5]
[1672725830624,30.0,11.842,11.826,63.5]
[1672725830827,5.45,11.84,11.826,63.5]
[1672725831040,5.45,11.84,11.821,258.1012217]
[1672725831041,30.0,11.839,11.823,30.0]
[1672725831257,30.0,11.839,11.824,63.51]
[1672725831465,93.43,11.839,11.824,63.51]
[1672725831674,30.0,11.839,11.825,30.0]
[1672725831880,35.45,11.84,11.825,30.0]
[1672725832090,63.39,11.847,11.826,63.5]
[1672725832524,63.39,11.847,11.827,30.0]
[1672725832738,63.38,11.848,11.828,63.49]
[1672725833040,63.38,11.848,11.83,30.0]
[1672725833362,63.38,11.848,11.832,30.0]
[1672725833574,30.0,11.847,11.833,63.47]
[1672725833789,30.0,11.847,11.834,30.0]
[1672725833996,30.0,11.847,11.833,63.47]
[1672725834201,30.0,11.847,11.832,30.0]
[1672725835038,342.0,11.847,11.831,63.48]
[1672725835253,30.0,11.845,11.827,63.5]
[1672725835463,63.41,11.844,11.825,30.0]
[1672725835805,30.0,11.843,11.826,63.5]
[1672725835998,63.42,11.842,11.826,63.5]
[1672725836403,30.0,11.843,11.827,20.0]
[1672725836634,30.0,11.845,11.828,93.49]
[1672725836941,30.0,11.845,11.83,30.0]
[1672725837145,30.0,11.845,11.831,20.0]
[1672725837768,93.4,11.845,11.831,20.0]
[1672725838181,30.0,11.845,11.831,20.0]
[1672725838519,63.4,11.846,11.832,30.0]
[1672725838729,342.0,11.847,11.833,63.47]
[1672725838919,342.0,11.847,11.834,30.0]
[1672725839465,312.0,11.847,11.835,63.45]
[1672725839665,98.88,11.85,11.836,30.0]
[1672725839666,5.51,11.85,11.836,30.0]
[1672725840283,63.38,11.849,11.835,63.45]
[1672725840496,30.0,11.848,11.834,30.0]
[1672725840944,68.88,11.85,11.835,63.45]
[1672725841156,5.51,11.85,11.836,30.0]
[1672725841979,63.38,11.849,11.836,30.0]
[1672725842204,5.51,11.85,11.836,30.0]
[1672725842205,68.88,11.85,11.836,30.0]
[1672725842426,30.0,11.851,11.836,30.0]
[1672725842624,312.0,11.851,11.837,83.44]
[1672725842841,312.0,11.851,11.838,30.0]
[1672725843167,312.0,11.851,11.839,83.43]
[1672725843490,312.0,11.851,11.84,30.0]
[1672725843675,63.35,11.855,11.841,20.0]
[1672725843881,63.35,11.855,11.836,30.0]
[1672725844091,30.0,11.854,11.836,30.0]
[1672725844319,63.36,11.853,11.836,30.0]
[1672725844505,30.0,11.852,11.836,30.0]
[1672725844723,5.44,11.85,11.836,30.0]
[1672725844941,63.38,11.849,11.836,30.0]
[1672725845347,35.44,11.85,11.836,30.0]
[1672725845770,35.44,11.85,11.833,30.0]
[1672725845771,63.38,11.849,11.833,93.47]
[1672725845985,30.0,11.848,11.833,30.0]
[1672725846202,63.39,11.847,11.833,30.0]
[1672725846400,30.0,11.846,11.833,30.0]
[1672725846606,342.0,11.846,11.833,30.0]
[1672725846828,30.0,11.844,11.832,30.0]
[1672725847054,30.0,11.844,11.833,63.47]
[1672725847264,30.0,11.844,11.831,117.7218]
[1672725847457,30.0,11.844,11.832,20.0]
[1672725847665,30.0,11.844,11.829,63.49]
[1672725847880,5.47,11.84,11.824,1120.40945355]
[1672725848085,63.43,11.839,11.824,1120.40945355]
[1672725848295,30.0,11.838,11.824,1120.40945355]
[1672725848506,63.44,11.837,11.824,1120.40945355]
[1672725849157,63.44,11.837,11.822,30.0]
[1672725849657,27.5,11.836,11.821,181.8439]
[1672725849869,27.5,11.836,11.821,118.3139]
[1672725850082,63.45,11.835,11.822,30.0]
[1672725850292,30.0,11.834,11.822,30.0]
[1672725850524,30.0,11.834,11.821,118.3139]
[1672725850718,30.0,11.834,11.82,46.59037487]
[1672725850719,5.47,11.83,11.82,46.59037487]
[1672725851566,35.47,11.83,11.82,46.59037487]
[1672725852409,57.33,11.83,11.82,46.59037487]
[1672725852614,76.28723102,11.829,11.82,46.59037487]
[1672725852828,30.0,11.828,11.82,46.59037487]
[1672725853024,63.5,11.827,11.82,46.59037487]
[1672725853351,30.0,11.826,11.82,46.59037487]
[1672725853566,63.51,11.825,11.82,46.59037487]
[1672725854095,30.0,11.824,11.815,48.88582505]
[1672725854282,5.44,11.82,11.815,48.88582505]
[1672725854598,317.44,11.82,11.815,48.88582505]
[1672725854809,30.0,11.819,11.815,0.00582505]
[1672725855134,93.54,11.819,11.815,0.00582505]
[1672725858817,30.0,11.819,11.815,0.00582505]
[1672725859238,93.54,11.819,11.815,0.00582505]
[1672725859975,30.0,11.819,11.815,0.00582505]
[1672725860185,30.0,11.817,11.815,0.00582505]
[1672725861854,63.53,11.821,11.815,0.00582505]
[1672725862286,93.52,11.822,11.815,0.00582505]
[1672725862611,312.0,11.817,11.815,0.00582505]
[1672725862805,30.0,11.816,11.815,0.00582505]
[1672725865865,30.0,11.816,11.811,0.01098775]
[1672725870598,312.0,11.812,11.811,0.01098775]
[1672725870796,30.0,11.811,11.807,163.64366945]
[1672725872369,312.0,11.812,11.807,163.64366945]
[1672725872586,35.5,11.82,11.807,163.64366945]
[1672725873004,35.5,11.82,11.808,63.6]
[1672725873543,35.5,11.82,11.808,30.0]
[1672725873734,93.52,11.822,11.808,30.0]
[1672725873735,30.0,11.822,11.808,30.0]
[1672725873943,5.49,11.83,11.809,63.59]
[1672725874159,5.49,11.83,11.81,50.0]
[1672725874484,30.0,11.829,11.812,30.0]
[1672725874698,63.49,11.828,11.813,63.57]
[1672725874889,63.49,11.828,11.812,93.58]
[1672725875108,30.0,11.827,11.812,93.58]
[1672725875302,30.0,11.827,11.812,63.58]
[1672725875517,312.0,11.818,11.809,63.59]
[1672725876593,312.0,11.818,11.81,30.0]
[1672725876799,312.0,11.818,11.811,63.58]
[1672725877020,312.0,11.818,11.812,30.0]
[1672725877237,312.0,11.818,11.813,63.57]
[1672725877965,312.0,11.818,11.811,63.58]
[1672725878174,312.0,11.818,11.809,63.59]
[1672725878495,312.0,11.818,11.808,63.6]
[1672725878710,30.0,11.817,11.807,163.64366945]
[1672725879742,312.0,11.818,11.807,163.64366945]
[1672725879968,30.0,11.817,11.808,63.6]
[1672725880287,30.0,11.817,11.807,163.64366945]
[1672725880685,30.0,11.819,11.807,163.64366945]
[1672725880892,30.0,11.819,11.808,30.0]
[1672725881106,30.0,11.819,11.807,163.64366945]
[1672725881554,30.0,11.819,11.808,30.0]
[1672725881863,30.0,11.821,11.808,30.0]
[1672725882804,30.0,11.822,11.808,30.0]
[1672725883124,30.0,11.822,11.81,30.0]
[1672725883525,312.0,11.813,11.809,63.59]
[1672725883736,312.0,11.813,11.807,227.24366945]
[1672725884700,312.0,11.813,11.808,30.0]
[1672725884889,312.0,11.813,11.807,227.24366945]
[1672725885100,312.0,11.813,11.808,30.0]
[1672725885424,22.6217,11.823,11.808,30.0]
[1672725885640,30.0,11.824,11.809,63.59]
[1672725885864,30.0,11.824,11.81,30.0]
[1672725886485,117.7077,11.825,11.81,30.0]
[1672725886695,93.49,11.828,11.811,83.58]
[1672725887015,93.49,11.828,11.812,30.0]
[1672725887201,93.49,11.828,11.814,30.0]
[1672725887636,30.0,11.828,11.814,30.0]
[1672725887957,63.47,11.832,11.815,63.56]
[1672725888170,30.0,11.835,11.815,63.56]
[1672725888171,200.57,11.834,11.815,63.56]
[1672725888480,30.0,11.826,11.815,171.7532]
[1672725890484,60.83618865,11.825,11.807,163.64366945]
[1672725890688,172.38475549,11.825,11.807,274.41456945]
[1672725890894,30.0,11.824,11.81,30.0]
[1672725891216,63.52,11.823,11.81,30.0]
[1672725891415,30.0,11.822,11.807,338.01456945]
[1672725891831,30.0,11.822,11.81,30.0]
[1672725892041,30.0,11.826,11.81,93.59]
[1672725892260,312.0,11.827,11.81,99.01]
[1672725893093,30.0,11.826,11.812,30.0]
[1672725893316,30.0,11.826,11.813,63.57]
[1672725893525,30.0,11.826,11.814,30.0]
[1672725893750,30.0,11.826,11.816,30.0]
[1672725893938,30.0,11.826,11.815,63.56]
[1672725894359,30.0,11.826,11.814,30.0]
[1672725894569,30.0,11.826,11.815,63.56]
[1672725895008,30.0,11.826,11.813,63.57]
[1672725896474,311.7082,11.821,11.813,63.57]